fUST/lending_fUST_20240118
["ID","MTS","AMOUNT","RATE_DAILY","PERIOD"]
[312059796,1705589444287,-699.89859688,0.00043006,15]
[312059797,1705589444296,-243.27592507,0.00043006,14]
[312059798,1705589444305,-1809.64846805,0.00043006,14]
[312059799,1705589444314,-3524.9849673,0.00043006,15]
[312059800,1705589444323,-250.0,0.00043006,14]
[312059801,1705589444333,-586.9296936,0.00043006,14]
[312059802,1705589444345,-150.0,0.0004301,30]
[312059803,1705589444412,-1645.83,0.00043013,30]
[312059804,1705589444422,-150.3,0.00043013,30]
[312059805,1705589444432,-181.66,0.00043013,30]
[312059806,1705589444441,-2000.0,0.00043014,30]
[312059807,1705589444451,-191.0,0.0004307,30]
[312059808,1705589444461,-191.0,0.0004308,30]
[312059809,1705589444470,-191.0,0.0004308,30]
[312059810,1705589444480,-191.0,0.0004309,30]
[312059811,1705589444489,-191.0,0.0004309,30]
[312059812,1705589444499,-151.0,0.00043107,7]
[312059813,1705589444510,-151.0,0.00043107,7]
[312059814,1705589444519,-151.0,0.00043107,7]
[312059815,1705589444528,-151.0,0.00043111,7]
[312059816,1705589444538,-151.0,0.00043111,7]
[312059817,1705589444549,-151.0,0.00043111,7]
[312059818,1705589444559,-151.0,0.00043111,7]
[312059819,1705589444569,-151.0,0.00043111,7]
[312059820,1705589444578,-151.0,0.00043111,7]
[312059821,1705589444587,-151.0,0.00043111,7]
[312059822,1705589444596,-151.0,0.00043111,7]
[312059823,1705589444605,-151.0,0.00043111,7]
[312059824,1705589444615,-151.0,0.00043111,7]
[312059825,1705589444624,-151.0,0.00043111,7]
[312059826,1705589444633,-151.0,0.00043111,7]
[312059827,1705589444642,-151.0,0.00043111,7]
[312059828,1705589444651,-244.43012,0.00043111,7]
[312059829,1705589444660,-151.0,0.00043111,7]
[312059830,1705589444670,-151.0,0.00043111,7]
[312059831,1705589444680,-151.0,0.00043111,7]
[312059832,1705589444689,-151.0,0.00043111,7]
[312059833,1705589444698,-151.0,0.00043111,7]
[312059834,1705589444707,-152.118286,0.00043111,7]
[312059835,1705589444716,-58299.73816972,0.00043113,7]
[312059836,1705589444735,-10202.84952288,0.00043113,7]
[312059837,1705589444832,-1510.51247701,0.00043006,15]
[312059838,1705589444842,-6770.43627518,0.00043113,7]
[312059847,1705589445681,-500.0,0.00031642,2]
[312059849,1705589445691,-500.0,0.00031642,2]
[312059851,1705589445701,-500.0,0.00031642,2]
[312059852,1705589445710,-500.0,0.00031642,2]
[312059854,1705589445719,-466.81253896,0.00031642,2]
[312059856,1705589445729,-500.0,0.00031642,2]
[312059857,1705589445738,-500.0,0.00031642,2]
[312059858,1705589445747,-500.0,0.00031642,2]
[312059859,1705589445757,-500.0,0.00031642,2]
[312059860,1705589445766,-500.0,0.00031642,2]
[312059861,1705589445775,-500.0,0.00031642,2]
[312059862,1705589445786,-472.29504764,0.00031642,2]
[312059863,1705589445796,-500.0,0.00031642,2]
[312059864,1705589445806,-268.81677478,0.00031642,2]
[312059865,1705589445815,-240.0448582,0.00031642,2]
[312059867,1705589445825,-169.8905383,0.00031642,2]
[312059868,1705589445835,-500.0,0.00031642,2]
[312059870,1705589445845,-500.0,0.00031642,2]
[312059871,1705589445855,-500.0,0.00031642,2]
[312059872,1705589445865,-500.0,0.00031642,2]
[312059873,1705589445874,-500.0,0.00031642,2]
[312059874,1705589445883,-500.0,0.00031642,2]
[312059875,1705589445892,-500.0,0.00031642,2]
[312059876,1705589445901,-500.0,0.00031642,2]
[312059877,1705589445911,-500.0,0.00031642,2]
[312059878,1705589445921,-500.0,0.00031642,2]
[312059879,1705589445931,-500.0,0.00031642,2]
[312059880,1705589445940,-500.0,0.00031642,2]
[312059881,1705589445950,-500.0,0.00031642,2]
[312059883,1705589445959,-500.0,0.00031642,2]
[312059886,1705589445969,-207.01152287,0.00031642,2]
[312059889,1705589445979,-500.0,0.00031642,2]
[312059893,1705589445989,-500.0,0.00031642,2]
[312059895,1705589445999,-500.0,0.00031642,2]
[312059896,1705589446011,-500.0,0.00031642,2]
[312059897,1705589446020,-500.0,0.00031642,2]
[312059898,1705589446030,-500.0,0.00031642,2]
[312059899,1705589446039,-500.0,0.00031642,2]
[312059900,1705589446048,-500.0,0.00031642,2]
[312059901,1705589446057,-500.0,0.00031642,2]
[312059902,1705589446066,-500.0,0.00031642,2]
[312059903,1705589446075,-500.0,0.00031642,2]
[312059904,1705589446084,-500.0,0.00031642,2]
[312059905,1705589446093,-500.0,0.00031642,2]
[312059906,1705589446102,-500.0,0.00031642,2]
[312059907,1705589446111,-500.0,0.00031642,2]
[312059908,1705589446119,-201.33017732,0.00031642,2]
[312059909,1705589446198,-298.66982268,0.00031642,2]
[312059910,1705589446207,-500.0,0.00031642,2]
[312059911,1705589446216,-500.0,0.00031642,2]
[312059912,1705589446225,-500.0,0.00031642,2]
[312059913,1705589446234,-500.0,0.00031642,2]
[312059914,1705589446243,-177.66150948,0.00031642,2]
[312059915,1705589446252,-500.0,0.00031642,2]
[312059916,1705589446261,-500.0,0.00031642,2]
[312059917,1705589446270,-500.0,0.00031642,2]
[312059918,1705589446281,-465.95732622,0.00036999,4]
[312059919,1705589446354,-154.98450155,0.00022,2]
[312059920,1705589446363,-1404.64623681,0.00031641,4]
[312059921,1705589446372,-150.0,0.00035552,2]
[312059922,1705589446382,-1310.073764,0.00035616,120]
[312059923,1705589446394,-34.04267378,0.00036999,4]
[312059924,1705589446404,-500.0,0.00036999,7]
[312059925,1705589446414,-500.0,0.00036999,7]
[312059926,1705589446424,-502.41790372,0.00036999,7]
[312059927,1705589446436,-500.0,0.00036999,7]
[312059928,1705589446447,-280.25864215,0.00036999,7]
[312059929,1705589446459,-500.0,0.00036999,7]
[312059930,1705589446469,-500.0,0.00036999,7]
[312059931,1705589446481,-500.0,0.00036999,7]
[312059932,1705589446492,-500.0,0.00036999,7]
[312059933,1705589446502,-305.03364365,0.00036999,7]
[312059934,1705589446511,-604.22128573,0.00036999,7]
[312059935,1705589446571,-500.0,0.00036999,7]
[312059936,1705589446588,-500.0,0.00036999,7]
[312059937,1705589446598,-500.0,0.00036999,7]
[312059938,1705589446607,-500.0,0.00036999,7]
[312059939,1705589446616,-500.0,0.00036999,7]
[312059940,1705589446626,-500.0,0.00036999,7]
[312059941,1705589446635,-500.0,0.00036999,7]
[312059942,1705589446645,-500.0,0.00036999,7]
[312059943,1705589446655,-500.0,0.00036999,7]
[312059944,1705589446664,-451.61258109,0.00036999,7]
[312059945,1705589446674,-500.0,0.00036999,7]
[312059946,1705589446683,-500.0,0.00036999,7]
[312059947,1705589446693,-500.0,0.00036999,7]
[312059948,1705589446702,-500.0,0.00036999,7]
[312059949,1705589446711,-500.0,0.00036999,7]
[312059950,1705589446720,-500.0,0.00036999,7]
[312059951,1705589446729,-500.0,0.00036999,7]
[312059952,1705589446738,-500.0,0.00036999,7]
[312059953,1705589446747,-500.0,0.00036999,7]
[312059954,1705589446755,-500.0,0.00036999,7]
[312059955,1705589446765,-500.0,0.00036999,7]
[312059956,1705589446774,-500.0,0.00036999,7]
[312059957,1705589446783,-500.0,0.00036999,7]
[312059958,1705589446792,-500.0,0.00036999,7]
[312059959,1705589446801,-508.24613211,0.00036999,7]
[312059960,1705589446810,-500.0,0.00036999,7]
[312059961,1705589446819,-150.0,0.00038552,2]
[312059962,1705589446829,-199.14077369,0.0003973,14]
[312059963,1705589446840,-386.12132242,0.00039787,2]
[312059964,1705589446849,-199.14077369,0.00040145,14]
[312059965,1705589446859,-175.0,0.00041,14]
[312059966,1705589446869,-150.0,0.00041552,2]
[312059967,1705589446879,-500.0,0.00043,30]
[312059968,1705589446888,-500.0,0.00043,30]
[312059969,1705589446897,-236.14752382,0.00043,30]
[312059970,1705589446907,-500.0,0.00043,30]
[312059971,1705589446916,-334.94526915,0.00043,30]
[312059972,1705589446925,-370.0224291,0.00043,30]
[312059973,1705589446934,-634.40838739,0.00043,30]
[312059974,1705589446943,-500.0,0.00043,30]
[312059975,1705589446952,-500.0,0.00043,30]
[312059976,1705589446961,-500.0,0.00043,30]
[312059977,1705589446970,-500.0,0.00043,30]
[312059978,1705589446978,-500.0,0.00043,30]
[312059979,1705589446988,-500.0,0.00043,30]
[312059980,1705589446997,-500.0,0.00043,30]
[312059981,1705589447008,-500.0,0.00043,30]
[312059982,1705589447017,-500.0,0.00043,30]
[312059983,1705589447027,-500.0,0.00043,30]
[312059984,1705589447037,-500.0,0.00043,30]
[312059985,1705589447047,-500.0,0.00043,30]
[312059986,1705589447056,-500.0,0.00043,30]
[312059987,1705589447065,-500.0,0.00043,30]
[312059988,1705589447074,-500.0,0.00043,30]
[312059989,1705589447084,-500.0,0.00043,30]
[312059990,1705589447093,-353.50576143,0.00043,30]
[312059991,1705589447102,-199.14,0.00043013,30]
[312059992,1705589447111,-202192.03409394,0.00043113,7]
[312059993,1705589455504,1356.94103872,0.00017797,5]
[312059994,1705589479480,1356.61395527,0.00017797,5]
[312059998,1705589669356,4790.79275157,0.0001,2]
[312059999,1705589724849,620.26741538,0.0001,2]
[312060000,1705589736843,622.21111377,0.0001,2]
[312060018,1705590369626,154.95351395,0.0001,2]
[312060019,1705590549770,2979.7424675,0.00015823,2]
[312060021,1705590628612,832.03273783,0.00012165,2]
[312060022,1705590628640,635.73583037,0.00012165,2]
[312060023,1705590628797,760.13811444,0.00014598,2]
[312060044,1705590631928,-977.3827654,0.00016218,2]
[312060045,1705590631939,-154.95351395,0.00016218,2]
[312060046,1705590631948,-154.95351395,0.00016218,2]
[312060047,1705590631958,-260.68598296,0.00016219,2]
[312060048,1705590631967,-1992.22396465,0.00016219,2]
[312060049,1705590631978,-154.95351395,0.0001622,2]
[312060050,1705590631988,-231.55726256,0.0001622,2]
[312060051,1705590631998,-1252.27760892,0.0001622,2]
[312060052,1705590632007,-526.2848544,0.0001622,2]
[312060053,1705590632016,-164.49774557,0.0001622,2]
[312060054,1705590632026,-295.65178699,0.0001622,2]
[312060055,1705590632037,-154.95351395,0.0001622,2]
[312060056,1705590632047,-245.97432418,0.0001622,2]
[312060057,1705590632056,-208.66038293,0.0001622,2]
[312060058,1705590632065,-643.80991275,0.0001622,2]
[312060059,1705590632076,-606.99127798,0.0001622,2]
[312060060,1705590632086,-1588.60568926,0.0001622,2]
[312060061,1705590632097,-163.01320835,0.0001622,2]
[312060062,1705590632108,-594.63225978,0.0001622,2]
[312060063,1705590632119,-4810.32547462,0.0001622,2]
[312060064,1705590632131,-154.98450155,0.0001622,2]
[312060065,1705590632140,-170.31965919,0.00016221,2]
[312060066,1705590632149,-56994.80550059,0.00016221,2]
[312060067,1705590632271,-24162.77802139,0.00016221,2]
[312060068,1705590632281,-19850.23525334,0.00016221,2]
[312060069,1705590632291,-470.34681749,0.00016222,2]
[312060070,1705590632300,-36939.26517678,0.00016222,2]
[312060071,1705590632310,-270.6612929,0.00016224,2]
[312060072,1705590632320,-24900.0,0.00016225,2]
[312060073,1705590632330,-1340.0880042,0.00017228,2]
[312060074,1705590632339,-3127.66612241,0.00017229,2]
[312060075,1705590632348,-772.36472843,0.0001723,2]
[312060076,1705590632358,-154.95351395,0.00017232,2]
[312060077,1705590632368,-154.95351395,0.00017232,2]
[312060078,1705590632390,-155.92150392,0.00017235,2]
[312060079,1705590632400,-159.36091683,0.00017235,2]
[312060080,1705590632410,-268.69930089,0.00017235,2]
[312060081,1705590632421,-160.40087129,0.00017235,2]
[312060082,1705590632431,-9194.765151,0.00017236,2]
[312060083,1705590635450,-317.97883048,0.00017236,2]
[312060084,1705590637364,5000.0,0.00015733,2]
[312060131,1705590638091,-154.95351395,0.00016217,3]
[312060133,1705590638101,-554.79776327,0.0001622,2]
[312060135,1705590638111,-4912.58002318,0.00017236,2]
[312060137,1705590638120,-174.97506827,0.00017236,2]
[312060139,1705590638130,-2107.37177409,0.00017236,2]
[312060141,1705590638140,-653.69737887,0.00017697,2]
[312060143,1705590638150,-37028.36729735,0.00017797,2]
[312060145,1705590638160,-154.98450155,0.00017797,2]
[312060148,1705590638170,-156.93310058,0.00017797,2]
[312060150,1705590638180,-2014.54233428,0.00017797,2]
[312060151,1705590638189,-200.0,0.00017843,2]
[312060154,1705590638199,-165.276426,0.00019178,2]
[312060155,1705590638209,-1113.73927963,0.000195,2]
[312060158,1705590638219,-280.0,0.00019627,2]
[312060161,1705590638228,-2082.71954556,0.0002,2]
[312060162,1705590638238,-154.9690062,0.0002,2]
[312060164,1705590638247,-1922.87915741,0.00021,2]
[312060167,1705590638256,-6456.15920102,0.00021,2]
[312060168,1705590638265,-327.24959811,0.00021,2]
[312060171,1705590638275,-1815.75822214,0.00021,2]
[312060173,1705590638284,-653.69737885,0.00021398,2]
[312060174,1705590638296,-391.0,0.00021589,7]
[312060176,1705590638305,-688.82709207,0.000217,2]
[312060177,1705590638314,-166.666666,0.00021918,2]
[312060179,1705590638324,-154.98450155,0.00022,2]
[312060180,1705590638334,-293.23530462,0.00022,4]
[312060181,1705590638344,-425.62034809,0.00022,2]
[312060183,1705590638354,-3959.1053351,0.00022,2]
[312060185,1705590638363,-2997.30262595,0.00022221,2]
[312060186,1705590638372,-166.666666,0.00022431,2]
[312060187,1705590638381,-166.666666,0.00022944,2]
[312060188,1705590638391,-166.666666,0.00023456,2]
[312060189,1705590638401,-200.0,0.00023748,7]
[312060190,1705590638411,-348.0,0.00023748,7]
[312060191,1705590638420,-166.666666,0.00023969,2]
[312060192,1705590638430,-1830.62942806,0.00024,2]
[312060193,1705590638440,-166.666666,0.00024482,2]
[312060194,1705590638450,-678.93201338,0.00025,2]
[312060195,1705590638460,-653.69737885,0.000251,2]
[312060196,1705590638470,-200.0,0.00026123,15]
[312060197,1705590638480,-200.0,0.00026123,15]
[312060198,1705590638490,-368.0,0.00026123,15]
[312060199,1705590638499,-165.90071,0.00026363,2]
[312060200,1705590638509,-185.27753363,0.000273,2]
[312060201,1705590638519,-17551.31,0.00027397,3]
[312060202,1705590638529,-14626.09,0.00027397,3]
[312060203,1705590638541,-12188.41,0.00027397,3]
[312060204,1705590638551,-261.3528024,0.000274,2]
[312060205,1705590638560,-3214.7973618,0.000275,2]
[312060206,1705590638570,-305.46439516,0.00028,2]
[312060207,1705590638580,-223.91467111,0.00028,7]
[312060208,1705590638669,-290.00241025,0.00028,2]
[312060209,1705590638681,-154.95351395,0.00028,10]
[312060210,1705590638691,-200.0,0.00028736,15]
[312060211,1705590638701,-200.0,0.00028736,15]
[312060212,1705590638710,-357.0,0.00028736,15]
[312060213,1705590638926,-653.69737885,0.00028801,2]
[312060214,1705590638936,-2455.73923901,0.00029,2]
[312060215,1705590638945,-620.00187957,0.0002937,2]
[312060216,1705590638955,-161.61,0.00029999,2]
[312060217,1705590638965,-161.61,0.00029999,2]
[312060218,1705590638977,-161.61,0.00029999,2]
[312060219,1705590638987,-161.61,0.00029999,2]
[312060220,1705590638997,-161.61,0.00029999,2]
[312060221,1705590639006,-161.61,0.00029999,2]
[312060222,1705590639015,-161.61,0.00029999,2]
[312060223,1705590639025,-161.61,0.00029999,2]
[312060224,1705590639035,-161.61,0.00029999,2]
[312060225,1705590639045,-154.98450155,0.0003,2]
[312060226,1705590639054,-195.1690538,0.0003,4]
[312060227,1705590639063,-283.01176432,0.0003,3]
[312060228,1705590639072,-166.71322997,0.0003,2]
[312060229,1705590639082,-30314.81873102,0.0003,2]
[312060230,1705590639091,-1908.4624739,0.0003,2]
[312060231,1705590639100,-23896.91398361,0.0003,3]
[312060232,1705590639112,-2318.42786904,0.0003,4]
[312060233,1705590639121,-45051.95022159,0.0003,10]
[312060234,1705590639131,-154.9690062,0.0003,2]
[312060235,1705590639142,-464.23133021,0.0003,2]
[312060236,1705590639152,-2491.60757104,0.0003,4]
[312060237,1705590639161,-682.23213824,0.0003,3]
[312060238,1705590639172,-687.89788967,0.0003,4]
[312060239,1705590639184,-155.0,0.0003,2]
[312060240,1705590639193,-200.4077457,0.0003,4]
[312060241,1705590639203,-31967.20813044,0.0003,4]
[312060242,1705590639212,-154.95351395,0.0003,4]
[312060243,1705590639221,-159.0,0.0003,2]
[312060244,1705590639231,-154.95351395,0.0003,4]
[312060245,1705590639243,-157.65627202,0.0003,4]
[312060246,1705590639252,-3759.56124,0.0003,2]
[312060247,1705590639261,-368.87856589,0.0003,6]
[312060248,1705590639271,-243.91959085,0.0003,4]
[312060249,1705590639281,-201.08171049,0.0003,4]
[312060250,1705590639290,-201.08171049,0.0003,4]
[312060251,1705590639299,-197.63447904,0.0003013,2]
[312060252,1705590639308,-500.0,0.00030136,2]
[312060253,1705590639318,-153.0,0.00030137,2]
[312060254,1705590639327,-153.0,0.00030137,2]
[312060255,1705590639336,-153.0,0.00030137,2]
[312060256,1705590639345,-153.0,0.00030137,2]
[312060257,1705590639354,-153.0,0.00030137,2]
[312060258,1705590639364,-153.0,0.00030137,2]
[312060259,1705590639374,-153.0,0.00030137,2]
[312060260,1705590639383,-153.0,0.00030137,2]
[312060261,1705590639392,-153.0,0.00030137,2]
[312060262,1705590639402,-153.0,0.00030137,2]
[312060263,1705590639411,-153.0,0.00030137,2]
[312060265,1705590639421,-153.0,0.00030137,2]
[312060266,1705590639430,-153.0,0.00030137,2]
[312060267,1705590639438,-433.9252263,0.00030137,2]
[312060268,1705590639447,-153.0,0.00030137,2]
[312060269,1705590639456,-153.0,0.00030137,2]
[312060270,1705590639465,-153.0,0.00030137,2]
[312060272,1705590639475,-153.0,0.00030137,2]
[312060273,1705590639484,-198.9993255,0.00030137,2]
[312060274,1705590639493,-153.0,0.00030137,2]
[312060275,1705590639502,-153.0,0.00030137,2]
[312060276,1705590639511,-153.0,0.00030137,2]
[312060277,1705590639520,-153.0,0.00030137,2]
[312060278,1705590639529,-153.0,0.00030137,2]
[312060279,1705590639539,-153.0,0.00030137,2]
[312060280,1705590639548,-153.0,0.00030137,2]
[312060281,1705590639557,-153.0,0.00030137,2]
[312060282,1705590639566,-153.0,0.00030137,2]
[312060283,1705590639576,-153.0,0.00030137,2]
[312060284,1705590639586,-198.9993255,0.00030137,2]
[312060285,1705590639594,-153.0,0.00030137,2]
[312060286,1705590639604,-153.0,0.00030137,2]
[312060287,1705590639612,-153.0,0.00030137,2]
[312060288,1705590639621,-153.0,0.00030137,2]
[312060289,1705590639631,-153.0,0.00030137,2]
[312060290,1705590639640,-153.0,0.00030137,2]
[312060291,1705590639649,-153.0,0.00030137,2]
[312060292,1705590639658,-198.9993255,0.00030137,2]
[312060293,1705590639667,-153.0,0.00030137,2]
[312060294,1705590639676,-307.4659568,0.00030137,2]
[312060295,1705590639686,-153.0,0.00030137,2]
[312060296,1705590639694,-153.0,0.00030137,2]
[312060297,1705590639703,-153.0,0.00030137,2]
[312060298,1705590639712,-153.0,0.00030137,2]
[312060299,1705590639721,-153.0,0.00030137,2]
[312060300,1705590639735,-198.9993255,0.00030137,2]
[312060301,1705590639744,-153.0,0.00030137,2]
[312060302,1705590639753,-153.0,0.00030137,2]
[312060303,1705590639762,-153.0,0.00030137,2]
[312060304,1705590639772,-153.0,0.00030137,2]
[312060305,1705590639782,-153.0,0.00030137,2]
[312060306,1705590639791,-198.9993255,0.00030137,2]
[312060307,1705590639800,-153.0,0.00030137,2]
[312060308,1705590639810,-153.0,0.00030137,2]
[312060309,1705590639819,-198.9993255,0.00030137,2]
[312060310,1705590639828,-153.0,0.00030137,2]
[312060311,1705590639837,-153.0,0.00030137,2]
[312060312,1705590639846,-153.0,0.00030137,2]
[312060313,1705590639855,-198.9993255,0.00030137,2]
[312060314,1705590639864,-153.0,0.00030137,2]
[312060315,1705590639873,-198.9993255,0.00030137,2]
[312060316,1705590639882,-153.0,0.00030137,2]
[312060317,1705590639891,-198.9993255,0.00030137,2]
[312060318,1705590639900,-153.0,0.00030137,2]
[312060319,1705590639912,-198.9993255,0.00030137,2]
[312060320,1705590639921,-153.0,0.00030137,2]
[312060321,1705590639963,-198.9993255,0.00030137,2]
[312060322,1705590639975,-198.9993255,0.00030137,2]
[312060323,1705590639985,-225.2624022,0.00030137,2]
[312060324,1705590639994,-198.9993255,0.00030137,2]
[312060325,1705590640003,-198.9993255,0.00030137,2]
[312060326,1705590640012,-198.9993255,0.00030137,2]
[312060327,1705590640021,-198.9993255,0.00030137,2]
[312060329,1705590640031,-359.8816952,0.00030137,2]
[312060330,1705590640039,-177.6316112,0.00030137,2]
[312060331,1705590640048,-153.0,0.00030137,2]
[312060332,1705590640057,-306.0,0.00030137,2]
[312060333,1705590640065,-153.0,0.00030137,2]
[312060334,1705590640074,-153.0,0.00030137,2]
[312060335,1705590640083,-153.0,0.00030137,2]
[312060336,1705590640094,-201.4602459,0.00030137,2]
[312060337,1705590640103,-153.0,0.00030137,2]
[312060338,1705590640111,-153.0,0.00030137,2]
[312060340,1705590640120,-153.0,0.00030137,2]
[312060341,1705590640129,-153.0,0.00030137,2]
[312060342,1705590640138,-153.0,0.00030137,2]
[312060343,1705590640147,-153.0,0.00030137,2]
[312060344,1705590640156,-153.0,0.00030137,2]
[312060345,1705590640166,-153.0,0.00030137,2]
[312060346,1705590640174,-153.0,0.00030137,2]
[312060347,1705590640184,-153.0,0.00030137,2]
[312060348,1705590640193,-153.0,0.00030137,2]
[312060349,1705590640203,-153.0,0.00030137,2]
[312060350,1705590640213,-153.0,0.00030137,2]
[312060351,1705590640222,-153.0,0.00030137,2]
[312060352,1705590640232,-153.0,0.00030137,2]
[312060353,1705590640241,-153.0,0.00030137,2]
[312060354,1705590640250,-153.0,0.00030137,2]
[312060355,1705590640260,-153.0,0.00030137,2]
[312060356,1705590640269,-306.4086177,0.00030137,2]
[312060357,1705590640278,-153.0,0.00030137,2]
[312060358,1705590640288,-153.0,0.00030137,2]
[312060359,1705590640297,-153.0,0.00030137,2]
[312060360,1705590640306,-153.0,0.00030137,2]
[312060361,1705590640315,-153.0,0.00030137,2]
[312060362,1705590640324,-153.0,0.00030137,2]
[312060363,1705590640333,-153.0,0.00030137,2]
[312060364,1705590640342,-153.0,0.00030137,2]
[312060365,1705590640351,-153.0,0.00030137,2]
[312060366,1705590640360,-153.0,0.00030137,2]
[312060367,1705590640370,-153.0,0.00030137,2]
[312060368,1705590640378,-153.0,0.00030137,2]
[312060369,1705590640388,-153.0,0.00030137,2]
[312060370,1705590640397,-198.9993255,0.00030137,2]
[312060371,1705590640406,-153.0,0.00030137,2]
[312060372,1705590640415,-153.0,0.00030137,2]
[312060373,1705590640424,-153.0,0.00030137,2]
[312060374,1705590640433,-153.0,0.00030137,2]
[312060375,1705590640442,-153.0,0.00030137,2]
[312060376,1705590640451,-153.0,0.00030137,2]
[312060377,1705590640460,-153.0,0.00030137,2]
[312060378,1705590640469,-198.9993255,0.00030137,2]
[312060379,1705590640478,-153.0,0.00030137,2]
[312060380,1705590640487,-153.0,0.00030137,2]
[312060381,1705590640496,-153.0,0.00030137,2]
[312060382,1705590640571,-198.9993255,0.00030137,2]
[312060383,1705590640581,-153.0,0.00030137,2]
[312060384,1705590640589,-153.0,0.00030137,2]
[312060385,1705590640598,-153.0,0.00030137,2]
[312060386,1705590640608,-153.0,0.00030137,2]
[312060387,1705590640617,-153.0,0.00030137,2]
[312060388,1705590640626,-153.0,0.00030137,2]
[312060389,1705590640635,-153.0,0.00030137,2]
[312060390,1705590640645,-198.9993255,0.00030137,2]
[312060391,1705590640654,-153.0,0.00030137,2]
[312060392,1705590640662,-153.0,0.00030137,2]
[312060393,1705590640671,-153.0,0.00030137,2]
[312060394,1705590640680,-153.0,0.00030137,2]
[312060395,1705590640692,-153.0,0.00030137,2]
[312060396,1705590640701,-153.0,0.00030137,2]
[312060397,1705590640714,-198.9993255,0.00030137,2]
[312060398,1705590640727,-153.0,0.00030137,2]
[312060399,1705590640737,-153.0,0.00030137,2]
[312060400,1705590640747,-153.0,0.00030137,2]
[312060401,1705590640759,-153.0,0.00030137,2]
[312060402,1705590640769,-198.9993255,0.00030137,2]
[312060403,1705590640780,-153.0,0.00030137,2]
[312060404,1705590640791,-153.0,0.00030137,2]
[312060405,1705590640800,-198.9993255,0.00030137,2]
[312060406,1705590640810,-198.9993255,0.00030137,2]
[312060407,1705590640819,-198.9993255,0.00030137,2]
[312060408,1705590640828,-198.9993255,0.00030137,2]
[312060409,1705590640838,-198.9993255,0.00030137,2]
[312060410,1705590640847,-199.85839,0.00030137,2]
[312060411,1705590640856,-680.104669,0.00030137,2]
[312060413,1705590640867,-41823.5997688,0.00030137,2]
[312060414,1705590640875,-500.0,0.00030273,2]
[312060416,1705590640886,-500.0,0.0003041,2]
[312060417,1705590640896,-2761.5083922,0.000305,2]
[312060418,1705590640906,-75740.90389871,0.00030521,5]
[312060419,1705590640916,-500.0,0.00030547,2]
[312060420,1705590640927,-150.5,0.0003066,30]
[312060421,1705590640937,-172.95,0.0003067,30]
[312060422,1705590640947,-230.0,0.0003067,30]
[312060423,1705590640957,-150.5,0.0003067,30]
[312060424,1705590640966,-150.5,0.0003068,30]
[312060425,1705590640975,-230.0,0.0003068,30]
[312060426,1705590640985,-150.5,0.0003068,30]
[312060427,1705590640994,-500.0,0.00030684,2]
[312060428,1705590641003,-243.29,0.0003069,30]
[312060429,1705590641013,-150.5,0.0003069,30]
[312060430,1705590641023,-156.13,0.0003069,30]
[312060431,1705590641032,-230.0,0.0003069,30]
[312060432,1705590641042,-23273.11460265,0.00030743,5]
[312060433,1705590641051,-13968.39819236,0.00030759,6]
[312060434,1705590641060,-2239.30883521,0.00030759,4]
[312060435,1705590641070,-50000.0,0.00030774,5]
[312060436,1705590641079,-226.59104283,0.000308,15]
[312060437,1705590641088,-500.0,0.00030821,2]